lending/lending_fUSD_20250131
["ID","MTS","AMOUNT","RATE_DAILY","PERIOD"]
[351066002,1738323059315,-964.18,0.00016575,2]
[351066003,1738323059325,-500.0,0.00016575,2]
[351066004,1738323059335,-5005.42,0.00016575,2]
[351066005,1738323059345,-573.35,0.00016575,2]
[351066006,1738323059355,-615.59,0.00016575,2]
[351066007,1738323059366,-500.0,0.00016575,2]
[351066008,1738323059375,-500.0,0.00016575,2]
[351066009,1738323059386,-7290.56,0.00016575,2]
[351066010,1738323059395,-1106.15,0.00016575,2]
[351066011,1738323059405,-3367.77,0.00016575,2]
[351066012,1738323059414,-2830.59,0.00016575,2]
[351066013,1738323059424,-500.0,0.00016575,2]
[351066014,1738323059436,-500.0,0.00016575,2]
[351066015,1738323059445,-500.0,0.00016575,2]
[351066016,1738323059455,-820.23,0.00016575,2]
[351066017,1738323059465,-630.22,0.00016575,2]
[351066018,1738323059475,-500.0,0.00016575,2]
[351066019,1738323059486,-500.0,0.00016575,2]
[351066020,1738323059497,-500.0,0.00016575,2]
[351066021,1738323059506,-665.12,0.00016575,2]
[351066022,1738323059517,-500.0,0.00016575,2]
[351066023,1738323059527,-1258.51,0.00016575,2]
[351066024,1738323059537,-1387.06,0.00016575,2]
[351066025,1738323059546,-1775.32,0.00016575,2]
[351066026,1738323059555,-500.0,0.00016575,2]
[351066027,1738323059565,-3871.59,0.00016575,2]
[351066028,1738323059576,-1762.27,0.00016575,2]
[351066029,1738323059586,-1539.71,0.00016575,2]
[351066030,1738323059595,-1371.01,0.00016575,2]
[351066031,1738323059604,-710.8,0.00016575,2]
[351066032,1738323059614,-500.0,0.00016575,2]
[351066033,1738323059623,-500.0,0.00016575,2]
[351066034,1738323059633,-962.21,0.00016575,2]
[351066035,1738323059643,-1636.23,0.00016575,2]
[351066036,1738323059653,-500.0,0.00016575,2]
[351066037,1738323059663,-500.0,0.00016575,2]
[351066038,1738323059673,-500.0,0.00016575,2]
[351066039,1738323059682,-500.0,0.00016575,2]
[351066040,1738323059692,-1387.02,0.00016575,2]
[351066041,1738323059701,-1380.28,0.00016575,2]
[351066042,1738323059711,-1456.65,0.00016575,2]
[351066043,1738323059721,-500.0,0.00016575,2]
[351066044,1738323059731,-1906.65,0.00016575,2]
[351066045,1738323059741,-1067.94,0.00016575,2]
[351066046,1738323059751,-500.0,0.00016575,2]
[351066047,1738323059760,-500.0,0.00016575,2]
[351066048,1738323059770,-500.0,0.00016575,2]
[351066049,1738323059780,-500.0,0.00016575,2]
[351066050,1738323059789,-3531.48,0.00016575,2]
[351066051,1738323059799,-500.86,0.00016575,2]
[351066052,1738323059808,-500.0,0.00016575,2]
[351066053,1738323059819,-509.93,0.00016575,2]
[351066054,1738323059829,-1186.73,0.00016575,2]
[351066055,1738323059839,-500.0,0.00016575,2]
[351066056,1738323059849,-510.26524631,0.00016575,2]
[351066057,1738323059859,-1411.37,0.00016575,2]
[351066058,1738323059868,-500.0,0.00016575,2]
[351066059,1738323059878,-500.0,0.00016575,2]
[351066060,1738323059889,-500.0,0.00016575,2]
[351066061,1738323059898,-2122.9,0.00016575,2]
[351066062,1738323059907,-902.27,0.00016575,2]
[351066063,1738323059918,-500.0,0.00016575,2]
[351066064,1738323059928,-500.0,0.00016575,2]
[351066065,1738323059938,-2839.89,0.00016575,2]
[351066066,1738323059949,-1169.81,0.00016575,2]
[351066067,1738323059959,-2045.77,0.00016575,2]
[351066068,1738323059968,-845.02,0.00016575,2]
[351066069,1738323059979,-2892.95,0.00016575,2]
[351066070,1738323059992,-500.0,0.00016575,2]
[351066071,1738323060002,-577.80667353,0.00016575,2]
[351066072,1738323060012,-500.0,0.00016575,2]
[351066073,1738323060023,-1131.85,0.00016575,2]
[351066074,1738323060033,-3027.76,0.00016575,2]
[351066075,1738323060043,-4851.36,0.00016575,2]
[351066076,1738323060052,-500.0,0.00016575,2]
[351066077,1738323060064,-1718.8,0.00016575,2]
[351066078,1738323060074,-2594.05,0.00016575,2]
[351066079,1738323060083,-1324.51,0.00016575,2]
[351066080,1738323060093,-500.0,0.00016575,2]
[351066081,1738323060102,-1337.35,0.00016575,2]
[351066082,1738323060112,-1106.09,0.00016575,2]
[351066083,1738323060122,-500.0,0.00016575,2]
[351066084,1738323060132,-500.0,0.00016575,2]
[351066085,1738323060143,-500.0,0.00016575,2]
[351066086,1738323060152,-949.11,0.00016575,2]
[351066087,1738323060162,-500.0,0.00016575,2]
[351066088,1738323060172,-1261.33,0.00016575,2]
[351066089,1738323060182,-500.0,0.00016575,2]
[351066090,1738323060192,-710.62,0.00016575,2]
[351066091,1738323060201,-650.7,0.00016575,2]
[351066092,1738323060211,-705.09,0.00016575,2]
[351066093,1738323060221,-500.0,0.00016575,2]
[351066094,1738323060230,-500.0,0.00016575,2]
[351066095,1738323060240,-500.0,0.00016575,2]
[351066096,1738323060249,-500.0,0.00016575,2]
[351066097,1738323060259,-742.48,0.00016575,2]
[351066098,1738323060269,-2364.34,0.00016575,2]
[351066099,1738323060278,-9206.65,0.00016575,2]
[351066100,1738323060288,-500.0,0.00016575,2]
[351066101,1738323060298,-514.02212308,0.00016575,2]
[351066102,1738323060308,-1730.79,0.00016575,2]
[351066103,1738323060318,-500.0,0.00016575,2]
[351066104,1738323060327,-2632.89,0.00016575,2]
[351066105,1738323060336,-500.0,0.00016575,2]
[351066106,1738323060346,-500.0,0.00016575,2]
[351066107,1738323060355,-500.0,0.00016575,2]
[351066108,1738323060365,-994.44,0.00016575,2]
[351066109,1738323060375,-532.95452222,0.00016575,2]
[351066110,1738323060386,-2217.98,0.00016575,2]
[351066111,1738323060396,-1185.07,0.00016575,2]
[351066112,1738323060406,-2299.57,0.00016575,2]
[351066113,1738323060415,-754.96,0.00016575,2]
[351066114,1738323060425,-637.68,0.00016575,2]
[351066115,1738323060434,-1695.38,0.00016575,2]
[351066116,1738323060444,-500.0,0.00016575,2]
[351066117,1738323060454,-959.09,0.00016575,2]
[351066118,1738323060463,-1576.65,0.00016575,2]
[351066119,1738323060473,-1408.79,0.00016575,2]
[351066120,1738323060483,-3752.37,0.00016575,2]
[351066121,1738323060493,-500.0,0.00016575,2]
[351066122,1738323060504,-1401.32,0.00016575,2]
[351066123,1738323060514,-1087.69,0.00016575,2]
[351066124,1738323060524,-989.74,0.00016575,2]
[351066125,1738323060533,-500.0,0.00016575,2]
[351066126,1738323060543,-500.0,0.00016575,2]
[351066127,1738323060553,-500.0,0.00016575,2]
[351066128,1738323060563,-8215.37,0.00016575,2]
[351066129,1738323060572,-2515.21,0.00016575,2]
[351066130,1738323060582,-647.13,0.00016575,2]
[351066131,1738323060591,-2597.85,0.00016575,2]
[351066132,1738323060601,-500.0,0.00016575,2]
[351066133,1738323060610,-510.39903692,0.00016575,2]
[351066134,1738323060620,-2757.06,0.00016575,2]
[351066135,1738323060629,-909.1,0.00016575,2]
[351066136,1738323060640,-500.0,0.00016575,2]
[351066137,1738323060649,-1622.36,0.00016575,2]
[351066138,1738323060659,-2103.99,0.00016575,2]
[351066139,1738323060669,-1810.3,0.00016575,2]
[351066140,1738323060678,-2894.94,0.00016575,2]
[351066141,1738323060688,-500.0,0.00016575,2]
[351066142,1738323060697,-500.0,0.00016575,2]
[351066143,1738323060709,-757.69,0.00016575,2]
[351066144,1738323060718,-688.07,0.00016575,2]
[351066145,1738323060727,-4454.49,0.00016575,2]
[351066146,1738323060736,-3861.01,0.00016575,2]
[351066147,1738323060746,-500.0,0.00016575,2]
[351066148,1738323060756,-500.0,0.00016575,2]
[351066149,1738323060766,-2025.17,0.00016575,2]
[351066150,1738323060775,-500.0,0.00016575,2]
[351066151,1738323060785,-3606.29,0.00016575,2]
[351066152,1738323060795,-500.0,0.00016575,2]
[351066153,1738323060804,-500.0,0.00016575,2]
[351066154,1738323060814,-3907.41,0.00016575,2]
[351066155,1738323060823,-500.0,0.00016575,2]
[351066156,1738323060832,-500.0,0.00016575,2]
[351066157,1738323060842,-500.0,0.00016575,2]
[351066158,1738323060852,-514.26670981,0.00016575,2]
[351066159,1738323060862,-2440.37,0.00016575,2]
[351066160,1738323060872,-1745.49,0.00016575,2]
[351066161,1738323060882,-500.0,0.00016575,2]
[351066162,1738323060893,-5548.15,0.00016575,2]
[351066163,1738323060902,-500.0,0.00016575,2]
[351066164,1738323060912,-3168.71,0.00016575,2]
[351066165,1738323060921,-3752.67,0.00016575,2]
[351066166,1738323060931,-1435.49,0.00016575,2]
[351066167,1738323060941,-1082.67,0.00016575,2]
[351066168,1738323060950,-500.0,0.00016575,2]
[351066169,1738323060959,-2282.44,0.00016575,2]
[351066170,1738323060969,-760.62,0.00016575,2]
[351066171,1738323060980,-1080.31,0.00016575,2]
[351066172,1738323060993,-941.91,0.00016575,2]
[351066173,1738323061004,-500.0,0.00016575,2]
[351066174,1738323061014,-500.0,0.00016575,2]
[351066175,1738323061026,-2947.86,0.00016575,2]
[351066176,1738323061036,-1273.21,0.00016575,2]
[351066177,1738323061045,-5608.95,0.00016575,2]
[351066178,1738323061056,-500.0,0.00016575,2]
[351066179,1738323061066,-506.91,0.00016575,2]
[351066180,1738323061076,-3988.77,0.00016575,2]
[351066181,1738323061086,-4353.52,0.00016575,2]
[351066182,1738323061095,-943.25,0.00016575,2]
[351066183,1738323061104,-500.0,0.00016575,2]
[351066184,1738323061113,-1595.96,0.00016575,2]
[351066185,1738323061122,-500.0,0.00016575,2]
[351066186,1738323061134,-500.0,0.00016575,2]
[351066187,1738323061144,-3722.14,0.00016575,2]
[351066188,1738323061154,-500.0,0.00016575,2]
[351066189,1738323061165,-500.0,0.00016575,2]
[351066190,1738323061175,-500.0,0.00016575,2]
[351066191,1738323061185,-500.0,0.00016575,2]
[351066192,1738323061195,-1683.72,0.00016575,2]
[351066193,1738323061204,-500.0,0.00016575,2]
[351066194,1738323061214,-3515.95,0.00016575,2]
[351066195,1738323061223,-2978.69,0.00016575,2]
[351066196,1738323061233,-667.8,0.00016575,2]
[351066197,1738323061243,-5511.82,0.00016575,2]
[351066198,1738323061253,-500.0,0.00016575,2]
[351066199,1738323061263,-500.0,0.00016575,2]
[351066200,1738323061273,-500.0,0.00016575,2]
[351066201,1738323061282,-500.0,0.00016575,2]
[351066202,1738323061292,-1007.69,0.00016575,2]
[351066203,1738323061302,-460.21654168,0.00016575,2]
[351066204,1738323061472,-749.94,0.00016575,2]
[351066205,1738323061483,-2950.32,0.00016575,2]
[351066206,1738323061492,-3729.85,0.00016575,2]
[351066207,1738323061502,-500.0,0.00016575,2]
[351066208,1738323061511,-6719.09,0.00016575,2]
[351066209,1738323061520,-832.98,0.00016575,2]
[351066210,1738323061528,-5011.36,0.00016575,2]
[351066211,1738323061537,-786.72,0.00016575,2]
[351066212,1738323061546,-9659.28,0.00016575,2]
[351066213,1738323061555,-500.0,0.00016575,2]
[351066214,1738323061564,-609.81,0.00016575,2]
[351066215,1738323061573,-2692.52,0.00016575,2]
[351066216,1738323061582,-16283.95,0.00016575,2]
[351066217,1738323061591,-500.0,0.00016575,2]
[351066218,1738323061599,-500.0,0.00016575,2]
[351066219,1738323061608,-500.0,0.00016575,2]
[351066220,1738323061617,-1717.37,0.00016575,2]
[351066221,1738323061627,-8168.26,0.00016575,2]
[351066222,1738323061636,-3203.56,0.00016575,2]
[351066223,1738323061646,-1518.78,0.00016575,2]
[351066224,1738323061655,-500.0,0.00016575,2]
[351066225,1738323061664,-1472.93,0.00016575,2]
[351066226,1738323061674,-500.0,0.00016575,2]
[351066227,1738323061682,-3231.63,0.00016575,2]
[351066228,1738323061691,-9057.52,0.00016575,2]
[351066229,1738323061701,-500.0,0.00016575,2]
[351066230,1738323061710,-5646.18,0.00016575,2]
[351066231,1738323061719,-11928.59,0.00016575,2]
[351066232,1738323061728,-500.0,0.00016575,2]
[351066233,1738323061737,-500.0,0.00016575,2]
[351066234,1738323061746,-500.0,0.00016575,2]
[351066235,1738323061755,-9120.6,0.00016575,2]
[351066236,1738323061764,-500.0,0.00016575,2]
[351066237,1738323061773,-1301.1,0.00016575,2]
[351066238,1738323061782,-2474.05,0.00016575,2]
[351066239,1738323061791,-1928.27,0.00016575,2]
[351066240,1738323061800,-576.67,0.00016575,2]
[351066241,1738323061809,-500.0,0.00016575,2]
[351066242,1738323061818,-584.22,0.00016575,2]
[351066243,1738323061827,-697.27,0.00016575,2]
[351066244,1738323061836,-881.35,0.00016575,2]
[351066245,1738323061846,-1354.07,0.00016575,2]
[351066246,1738323061855,-1975.43,0.00016575,2]
[351066247,1738323061864,-1585.85,0.00016575,2]
[351066248,1738323061873,-500.0,0.00016575,2]
[351066249,1738323061882,-1300.92,0.00016575,2]
[351066250,1738323061893,-500.0,0.00016575,2]
[351066251,1738323061902,-637.65,0.00016575,2]
[351066252,1738323061912,-2502.21,0.00016575,2]
[351066253,1738323061922,-500.0,0.00016575,2]
[351066254,1738323061932,-6551.41,0.00016575,2]
[351066255,1738323061942,-2979.91,0.00016575,2]
[351066256,1738323061952,-500.0,0.00016575,2]
[351066257,1738323061961,-500.0,0.00016575,2]
[351066258,1738323061970,-909.21,0.00016575,2]
[351066259,1738323061983,-1586.17,0.00016575,2]
[351066260,1738323061991,-500.0,0.00016575,2]
[351066261,1738323062001,-563.64,0.00016575,2]
[351066262,1738323062010,-500.0,0.00016575,2]
[351066263,1738323062020,-500.0,0.00016575,2]
[351066264,1738323062029,-2895.59,0.00016575,2]
[351066265,1738323062038,-500.0,0.00016575,2]
[351066266,1738323062048,-645.36,0.00016575,2]
[351066267,1738323062058,-1332.96,0.00016575,2]
[351066268,1738323062067,-2149.94,0.00016575,2]
[351066269,1738323062076,-697.01,0.00016575,2]
[351066270,1738323062085,-1981.95,0.00016575,2]
[351066271,1738323062094,-4891.31,0.00016575,2]
[351066272,1738323062103,-500.0,0.00016575,2]
[351066273,1738323062112,-1314.59,0.00016575,2]
[351066274,1738323062121,-776.53,0.00016575,2]
[351066275,1738323062131,-980.97018862,0.00016602,2]
[351066276,1738323062140,-5150.6905151,0.00016626,2]
[351066277,1738323062150,-201.72,0.00016642,2]
[351066278,1738323062158,-156.66,0.00016658,30]
[351066279,1738323062167,-5150.6905151,0.00016691,2]
[351066280,1738323062176,-1460.96,0.00016711,2]
[351066281,1738323062186,-1460.96,0.00016711,2]
[351066282,1738323062195,-1460.96,0.00016711,2]
[351066283,1738323062204,-745.56,0.00016711,2]
[351066284,1738323062214,-500.0,0.00016711,2]
[351066285,1738323062224,-500.0,0.00016711,2]
[351066286,1738323062233,-500.0,0.00016711,2]
[351066287,1738323062242,-500.0,0.00016711,2]
[351066288,1738323062252,-818.62,0.00016711,2]
[351066289,1738323062261,-818.62,0.00016711,2]
[351066290,1738323062270,-818.62,0.00016711,2]
[351066291,1738323062279,-1814.637341,0.00016712,2]
[351066292,1738323062289,-2620.30647,0.00016712,2]
[351066293,1738323062298,-153.436238,0.00016712,2]
[351066294,1738323062308,-500.0,0.00016712,2]
[351066295,1738323062317,-502.834558,0.00016712,2]
[351066296,1738323062326,-500.0,0.00016712,2]
[351066297,1738323062335,-500.0,0.00016712,2]
[351066298,1738323062344,-500.0,0.00016712,2]
[351066299,1738323062353,-502.12592053,0.00016712,2]
[351066300,1738323062363,-500.0,0.00016712,2]
[351066301,1738323062371,-500.0,0.00016712,2]
[351066302,1738323062381,-500.0,0.00016712,2]
[351066303,1738323062390,-514.9328134,0.00016712,2]
[351066304,1738323062399,-500.0,0.00016712,2]
[351066305,1738323062408,-500.0,0.00016712,2]
[351066306,1738323062417,-501.86679618,0.00016712,2]
[351066307,1738323062428,-284.0054363,0.00016712,2]
[351066308,1738323062438,-502.5655613,0.00016712,2]
[351066309,1738323062447,-500.0,0.00016712,2]
[351066310,1738323062457,-500.0,0.00016712,2]
[351066311,1738323062466,-500.0,0.00016712,2]
[351066312,1738323062475,-500.0,0.00016712,2]
[351066313,1738323062485,-481.53753587,0.00016712,2]
[351066314,1738323062494,-500.84956122,0.00016712,2]
[351066315,1738323062504,-500.0,0.00016712,2]
[351066316,1738323062513,-500.0,0.00016712,2]
[351066317,1738323062523,-501.54291805,0.00016712,2]
[351066318,1738323062532,-646.62,0.00016712,2]
[351066319,1738323062541,-501.39599894,0.00016712,2]
[351066320,1738323062550,-500.0,0.00016712,2]
[351066321,1738323062559,-1021.11,0.00016712,2]
[351066322,1738323062568,-244.37876642,0.00016712,2]
[351066323,1738323062578,-500.39198988,0.00016712,2]
[351066324,1738323062587,-500.0,0.00016712,2]
[351066325,1738323062597,-500.98906069,0.00016712,2]
[351066326,1738323062606,-507.76104195,0.00016712,2]
[351066327,1738323062615,-500.0,0.00016712,2]
[351066328,1738323062624,-501.1440295,0.00016712,2]
[351066329,1738323062634,-864.03,0.00016712,2]
[351066330,1738323062644,-500.0,0.00016712,2]
[351066331,1738323062654,-500.0,0.00016712,2]
[351066332,1738323062663,-514.2,0.00016712,2]
[351066333,1738323062672,-502.38530975,0.00016712,2]
[351066334,1738323062682,-500.0,0.00016712,2]
[351066335,1738323062691,-501.64690389,0.00016712,2]
[351066336,1738323062701,-625.68,0.00016712,2]
[351066337,1738323062710,-500.0,0.00016712,2]
[351066338,1738323062719,-500.0,0.00016712,2]
[351066339,1738323062728,-500.0,0.00016712,2]
[351066340,1738323062737,-500.0,0.00016712,2]
[351066341,1738323062747,-500.0,0.00016712,2]
[351066342,1738323062756,-627.41,0.00016712,2]
[351066343,1738323062765,-500.0,0.00016712,2]
[351066344,1738323062774,-500.0,0.00016712,2]
[351066345,1738323062783,-720.29,0.00016712,2]
[351066346,1738323062793,-500.0,0.00016712,2]
[351066347,1738323062803,-500.0,0.00016712,2]
[351066348,1738323062812,-500.0,0.00016712,2]
[351066349,1738323062822,-552.46539229,0.00016712,2]
[351066350,1738323062831,-500.0,0.00016712,2]
[351066351,1738323062840,-500.0,0.00016712,2]
[351066352,1738323062849,-500.0,0.00016712,2]
[351066353,1738323062859,-594.96,0.00016712,2]
[351066354,1738323062869,-500.0,0.00016712,2]
[351066355,1738323062878,-500.0,0.00016712,2]
[351066356,1738323062888,-500.0,0.00016712,2]
[351066357,1738323062897,-159.40303725,0.00016712,2]
[351066358,1738323062906,-500.0,0.00016712,2]
[351066359,1738323062915,-500.0,0.00016712,2]
[351066360,1738323062925,-500.0,0.00016712,2]
[351066361,1738323062934,-500.0,0.00016712,2]
[351066362,1738323062943,-500.0,0.00016712,2]
[351066363,1738323062952,-504.36370545,0.00016712,2]
[351066364,1738323062961,-500.0,0.00016712,2]
[351066365,1738323062970,-583.47,0.00016712,2]
[351066366,1738323062979,-500.0,0.00016712,2]
[351066367,1738323062992,-500.0,0.00016712,2]
[351066368,1738323063001,-500.0,0.00016712,2]
[351066369,1738323063011,-500.0,0.00016712,2]
[351066370,1738323063021,-530.05293301,0.00016712,2]
[351066371,1738323063032,-500.0,0.00016712,2]
[351066372,1738323063041,-692.31,0.00016712,2]
[351066373,1738323063052,-540.48161761,0.00016712,2]
[351066374,1738323063062,-500.0,0.00016712,2]
[351066375,1738323063073,-500.0,0.00016712,2]
[351066376,1738323063084,-500.0,0.00016712,2]
[351066377,1738323063094,-500.0,0.00016712,2]
[351066378,1738323063104,-500.0,0.00016712,2]
[351066379,1738323063119,-500.0,0.00016712,2]
[351066380,1738323063129,-500.0,0.00016712,2]
[351066381,1738323063139,-642.58,0.00016712,2]
[351066382,1738323063149,-500.0,0.00016712,2]
[351066383,1738323063160,-500.0,0.00016712,2]
[351066384,1738323063170,-500.0,0.00016712,2]
[351066385,1738323063180,-500.0,0.00016712,2]
[351066386,1738323063189,-500.0,0.00016712,2]
[351066387,1738323063199,-500.0,0.00016712,2]
[351066388,1738323063209,-1244.98,0.00016712,2]
[351066389,1738323063219,-500.0,0.00016712,2]
[351066390,1738323063228,-1199.61,0.00016712,2]
[351066391,1738323063238,-500.0,0.00016712,2]
[351066392,1738323063248,-506.66,0.00016712,2]
[351066393,1738323063258,-500.0,0.00016712,2]
[351066394,1738323063268,-500.0,0.00016712,2]
[351066395,1738323063278,-500.0,0.00016712,2]
[351066396,1738323063288,-500.0,0.00016712,2]
[351066397,1738323063298,-506.32847774,0.00016712,2]
[351066398,1738323063308,-500.0,0.00016712,2]
[351066399,1738323063318,-507.52393824,0.00016712,2]
[351066400,1738323063328,-500.0,0.00016712,2]
[351066401,1738323063338,-595.49,0.00016712,2]
[351066402,1738323063347,-500.0,0.00016712,2]
[351066403,1738323063357,-500.0,0.00016712,2]
[351066404,1738323063367,-500.0,0.00016712,2]
[351066405,1738323063377,-500.0,0.00016712,2]
[351066406,1738323063389,-1274.38,0.00016712,2]
[351066407,1738323063401,-500.0,0.00016712,2]
[351066408,1738323063410,-274.56236185,0.00016712,2]
[351066409,1738323063420,-755.45,0.00016712,2]
[351066410,1738323063430,-500.0,0.00016712,2]
[351066411,1738323063439,-500.0,0.00016712,2]
[351066412,1738323063449,-500.0,0.00016712,2]
[351066413,1738323063459,-500.0,0.00016712,2]
[351066414,1738323063470,-510.0724789,0.00016712,2]
[351066415,1738323063480,-500.0,0.00016712,2]
[351066416,1738323063490,-500.0,0.00016712,2]
[351066417,1738323063501,-500.0,0.00016712,2]
[351066418,1738323063511,-500.0,0.00016712,2]
[351066419,1738323063521,-500.0,0.00016712,2]
[351066420,1738323063531,-500.0,0.00016712,2]
[351066421,1738323063541,-500.0,0.00016712,2]
[351066422,1738323063550,-500.0,0.00016712,2]
[351066423,1738323063559,-532.66,0.00016712,2]
[351066424,1738323063570,-500.0,0.00016712,2]
[351066425,1738323063580,-912.55,0.00016712,2]
[351066426,1738323063590,-680.03,0.00016712,2]
[351066427,1738323063600,-500.0,0.00016712,2]
[351066428,1738323063610,-500.0,0.00016712,2]
[351066429,1738323063620,-500.0,0.00016712,2]
[351066430,1738323063630,-500.0,0.00016712,2]
[351066431,1738323063641,-500.0,0.00016712,2]
[351066432,1738323063650,-500.0,0.00016712,2]
[351066433,1738323063660,-500.9929406,0.00016712,2]
[351066434,1738323063669,-500.0,0.00016712,2]
[351066435,1738323063679,-500.0,0.00016712,2]
[351066436,1738323063688,-500.0,0.00016712,2]
[351066437,1738323063698,-500.0,0.00016712,2]
[351066438,1738323063707,-641.79,0.00016712,2]
[351066439,1738323063716,-500.0,0.00016712,2]
[351066440,1738323063725,-500.0,0.00016712,2]
[351066441,1738323063734,-500.0,0.00016712,2]
[351066442,1738323063743,-999.77,0.00016712,2]
[351066443,1738323063753,-500.0,0.00016712,2]
[351066444,1738323063762,-500.0,0.00016712,2]
[351066445,1738323063771,-500.0,0.00016712,2]
[351066446,1738323063781,-500.0,0.00016712,2]
[351066447,1738323063790,-500.0,0.00016712,2]
[351066448,1738323063799,-712.15,0.00016712,2]
[351066449,1738323063809,-500.0,0.00016712,2]
[351066450,1738323063819,-812.58,0.00016712,2]
[351066451,1738323063829,-500.0,0.00016712,2]
[351066452,1738323063839,-500.0,0.00016712,2]
[351066453,1738323063849,-498.17943016,0.00016712,2]
[351066454,1738323063859,-500.0,0.00016712,2]
[351066455,1738323063869,-500.0,0.00016712,2]
[351066456,1738323063879,-248.86184351,0.00016712,2]
[351066457,1738323063889,-685.64,0.00016712,2]
[351066458,1738323063900,-923.31,0.00016712,2]
[351066459,1738323063909,-621.16,0.00016712,2]
[351066460,1738323063919,-500.0,0.00016712,2]
[351066461,1738323063929,-500.0,0.00016712,2]
[351066462,1738323063938,-513.04096001,0.00016712,2]
[351066463,1738323063948,-500.0,0.00016712,2]
[351066464,1738323063958,-2002.83,0.00016712,2]
[351066465,1738323063972,-1251.02,0.00016712,2]
[351066466,1738323063983,-1563.52,0.00016712,2]
[351066467,1738323063995,-500.0,0.00016712,2]
[351066468,1738323064005,-500.0,0.00016712,2]
[351066469,1738323064015,-500.0,0.00016712,2]
[351066470,1738323064026,-500.0,0.00016712,2]
[351066471,1738323064036,-500.0,0.00016712,2]
[351066472,1738323064046,-505.33764281,0.00016712,2]
[351066473,1738323064056,-500.0,0.00016712,2]
[351066474,1738323064067,-500.0,0.00016712,2]
[351066475,1738323064078,-500.0,0.00016712,2]
[351066476,1738323064087,-500.0,0.00016712,2]
[351066477,1738323064097,-542.45,0.00016712,2]
[351066478,1738323064107,-2183.31,0.00016712,2]
[351066479,1738323064125,-501.17993349,0.00016712,2]
[351066480,1738323064134,-631.52,0.00016712,2]
[351066481,1738323064146,-504.59264376,0.00016712,2]
[351066482,1738323064157,-500.0,0.00016712,2]
[351066483,1738323064167,-541.14,0.00016712,2]
[351066484,1738323064177,-1559.63,0.00016712,2]
[351066485,1738323064187,-500.0,0.00016712,2]
[351066486,1738323064196,-808.68,0.00016712,2]
[351066487,1738323064206,-500.0,0.00016712,2]
[351066488,1738323064216,-512.26743938,0.00016712,2]
[351066489,1738323064225,-500.0,0.00016712,2]
[351066490,1738323064235,-1089.13,0.00016712,2]
[351066491,1738323064245,-500.0,0.00016712,2]
[351066492,1738323064255,-500.0,0.00016712,2]
[351066493,1738323064264,-1658.21,0.00016712,2]
[351066494,1738323064274,-524.66,0.00016712,2]
[351066495,1738323064284,-500.0,0.00016712,2]
[351066496,1738323064294,-1446.98,0.00016712,2]
[351066497,1738323064304,-500.0,0.00016712,2]
[351066498,1738323064314,-500.0,0.00016712,2]
[351066499,1738323064324,-510.77423339,0.00016712,2]
[351066500,1738323064334,-825.0,0.00016712,2]
[351066501,1738323064343,-1082.85,0.00016712,2]